{"text_format":"1","workbook":"xlsx","n_sheets":7,"sheets":["Catalogos","Catalogo 2","Catalogo_3","Catalogo_4","Catalogo_LP","Inicio","Layout"],"not_rendered":{"charts":0,"images":3,"macros":1,"external_links":0,"defined_names":4,"comments":0,"pivot_tables":0},"unopened":[],"bounds":{"document_bytes":16777216,"sheet_cells":100000,"rows_first":2000,"rows_last":500,"rows_between":2000,"halvings":0,"cell_chars":16384,"cell_head_chars":4096},"cells_cut":0,"cells_raw":0,"read":"whole","date_system":"1900"}

{"sheet":"Catalogos","index":0,"n_rows":41,"n_cols":3,"rows_kept":41,"cut":false,"hidden":true,"merged":[]}
["Especificación","Método de Prueba","Unidad de Medida"]
["Grasa buritrica","NMX-F-744-COFOCALEC-2011","% (m/m)"]
["Grasa buritrica","ISO 1736: 2008","% (m/m)"]
["Grasa buritrica","AOAC Method 989.05","% (m/m)"]
["Grasa buritrica","AOAC Method 932.06","% (m/m)"]
[]
[]
["Húmedad","NOM - 243 - SSAA - 2010","% (m/m)"]
["Húmedad","ISO 5537:2004","% (m/m)"]
["Húmedad","AOAC Method 927.05","% (m/m)"]
[]
[]
["Húmedad (con base a sólidos no grasos)","NOM - 243 - SSAA - 2010","% (m/m)"]
["Húmedad (con base a sólidos no grasos)","ISO 5537:2004","% (m/m)"]
["Húmedad (con base a sólidos no grasos)","AOAC Method 927.05","% (m/m)"]
[]
[]
["Proteína Total con base a sólidos lácteos no grasos","NOM - 155 - SCFI - 2012","% (m/m)"]
["Proteína Total con base a sólidos lácteos no grasos","ISO 8968 - 1: 2014","% (m/m)"]
["Proteína Total con base a sólidos lácteos no grasos","AOAC Method 991.20","% (m/m)"]
["Proteína Total con base a sólidos lácteos no grasos","AOAC Method 930.29","% (m/m)"]
[]
[]
["Caseína expresada en sólidos lácteos no grasos","NOM - 155 - SCFI - 2012","% (m/m)"]
[]
["Acidez como ácido láctico %","NMX - F - 725/1 - COFOCALEC - 2016","%"]
["Acidez como ácido láctico %","ISO 6091: 2010","%"]
["Acidez como ácido láctico %","ADPI","%"]
[]
[]
[]
["Partículas quemadas","NMX - F - 204 - 1986","mg"]
["Partículas quemadas","ADPI","mg"]
[]
[]
["índice de insolubilidad","NMX-F-744-COFOCALEC-2011","ml"]
["índice de insolubilidad","ISO 8156:2005","ml"]
["índice de insolubilidad","ADPI","ml"]
[]
[]
["Lactosa residual para ser considerada deslactosada ","NOM - 155 - SCFI - 2012","g/L"]

{"sheet":"Catalogo 2","index":1,"n_rows":82,"n_cols":9,"rows_kept":82,"cut":false,"hidden":true,"merged":[]}
["Tipo de Leche",null,"Producto",null,"Deslactosada",null,null,"Fracción"]
["Extra",null,"Leche Entera",null,"Si",null,"Leche Descremada","0402.10.01","04021001"]
["Estandar",null,"Leche Parcialmente Descremada",null,"No",null,"Leche Entera","0402.21.01","04022101"]
[null,null,"Leche Descremada",null,null,null,"Leche Parcialmente Descremada","0402.21.01","04022101"]
[]
["Humedad % (m/m)"]
["Humedad con base a sólidos no grasos % (m/m)"]
[]
[]
["Laboratorios",null,"CONTRASEÑA"]
["Agri-Mark","L00161","Agr61"]
["AGROLAB LUFA GmbH","L00220","AGR20"]
["Agropur Jerome Laboratory","L00225","Agr25"]
["Alliance Analytical Labs","L00165","All65"]
["ALS Global","L00190","ALS90"]
["Associated Milk Producer Inc","L00279","Ass79"]
["AsureQuality Limited","L00208","Asu08"]
["BUREAU VERITAS CANADA (2019) INC.","L00244","BUR44"]
["Cayuga Milk Ingredients","L00182","Cay82"]
["Certified Laboratories of Northern California","L00145","Cer45"]
["Cherney Microbiological Services LTD.","L00272","Che72"]
["Conagra Brands","L07COV","ConOV"]
["Dairy Farmers of America, Inc. Colorado","L00219","Dai19"]
["Dairy Farmers of America, Inc. Nevada","L00202","Dai02"]
["Dairy Farmers of America, Inc. New México","L00063","Dai63"]
["Dairy Farmers of America, Inc. Texas","L00241","Dai41"]
["DARIGOLD CALDWELL","L00144","DAR44"]
["DARIGOLD CHEHALIS","L00142","DAR42"]
["DARIGOLD CORPORATE LAB (DCL)","L00108","DAR08"]
["DARIGOLD JEROME","L00143","DAR43"]
["DARIGOLD LYNDEN ","L00141","DAR41"]
["DARIGOLD SUNNYSIDE","L00107","DAR07"]
["Deibel Laboratories","L06COV","DeiOV"]
["Deseret Dairy Products","L00245","Des45"]
["ESIANLAB SC","L00028","ESI28"]
["Eurofins DQCI, LLC","L00183","Eur83"]
["Eurofins ELS Limited","L00211","Eur11"]
["Eurofins Food Analytics NZ Limited","L00207","Eur07"]
["Fonterra Ltd Clandeboye Laboratory","L00186","Fon86"]
["Fonterra Ltd. Te Rapa Laboratory ","L00189","Fon89"]
["Fonterra Ltd. Waitoa Laboratory","L00187","Fon87"]
["Fonterra Ltd. Whareroa Laboratory ","L00188","Fon88"]
["Foremost Farms USA","L00228","For28"]
["Goodman Fielder New Zealand Limited","L00205","Goo05"]
["Heinz Wattie's Limited","L00204","Hei04"]
["High Desert Milk Lab","L00082","Hig82"]
["Idaho Milk Products","L00216","Ida16"]
["Laboratorio Central de Analisis de Granby","L00191","Lab91"]
["LABORATORIO CONAPROLE","L00226","LAB26"]
["LABORATORIO TECNOLOGICO DEL URUGUAY","L00217","LAB17"]
["Land O'Lakes, Inc. Carlisle","L00061","Lan61"]
["Le Sueur Food Ingredient Laboratory","L00224","Le 24"]
["Lone Star Dairy Products","L00041","Lon41"]
["Lufa Nord - West","L00214","Luf14"]
["Maryland & Virginia Milk Producers Cooperative Association","L00185","Mar85"]
["Matrix Sciences International Inc.","L00201","Mat01"]
["Meadowlark Dairy Nutrition LLC","L00203","Mea03"]
["Merieux Nutrisciences","L00164","Mer64"]
["Midwest Laboratories, Inc.","L00267","Mid67"]
["MilkTest NZ LP","L00209","Mil09"]
["Molkerei Ammerland eG","L00213","Mol13"]
["MULLER MILK & INGREDIENTS SEVERNSIDE LABORATORY","L00221","MUL21"]
["muva kempten GmbH","L00242","muv42"]
["National Science Laboratories","L00286","Nat86"]
["NQAC TOLUCA Nestlé México ","L02CVM","NQAVM"]
["O-at-ka Milk Products Coop. Inc.","L00184","O-a84"]
["SGS Vanguard Sciences","L08COV","SGSOV"]
["Sierra Dairy Labs","L00166","Sie66"]
["Silliker Inc. - Salida","L00243","Sil43"]
["Silliker Mexico SA de CV","L00222","Sil22"]
["Silliker, Inc.","L00181","Sil81"]
["Silliker, Inc. dba Merieux NutriSciences","L00290","Sil90"]
["Silliker, Inc. dba Merieux NutriSciences, Crete Analytical Laboratory","L00287","Sil87"]
["Silliker, Inc. Illinois Laboratory","L05COV","SilOV"]
["Silliker, Inc. Northern California Laboratory","L00062","Sil62"]
["Sunrise Laboratories, LLC","L00042","Sun42"]
["The Cawthron Institute Trust Board","L00210","The10"]
["United Dairymen of Arizona","L00301","Uni01"]
["USDA ","L00285","USD85"]
["USDA National Science Laboratories","L00282","USD82"]
["USDA, AMS, National Science Laboratories","L00264","USD64"]
["Westland Co-operative Dairy Company Limited","L00206","Wes06"]

{"sheet":"Catalogo_3","index":2,"n_rows":96,"n_cols":10,"rows_kept":96,"cut":false,"hidden":true,"merged":[]}
["Producto","Especificación","Método de Prueba",null,"ID Metodo de Prueba","Unidad de Medida","Mínimo","Máximo"]
["Leche Entera","Grasa buritrica","NMX-F-744-COFOCALEC-2011",{"$f":"CONCATENATE(A2,\"_\",C2)","v":"Leche Entera_NMX-F-744-COFOCALEC-2011"},"GB-1","% (m/m)",">= a 26","<= a 42"]
["Leche Entera","Grasa buritrica","ISO 1736: 2008",{"$f":"CONCATENATE(A3,\"_\",C3)","v":"Leche Entera_ISO 1736: 2008"},"GB-2","% (m/m)",">= a 26","<= a 42"]
["Leche Entera","Grasa buritrica","AOAC Method 989.05","Leche Entera_AOAC Method 989.05","GB-3","% (m/m)",">= a 26","<= a 42"]
["Leche Entera","Grasa buritrica","AOAC Method 932.06","Leche Entera_AOAC Method 932.06","GB-4","% (m/m)",">= a 26","<= a 42"]
["Leche Parcialmente Descremada","Grasa buritrica","NMX-F-744-COFOCALEC-2011","Leche Parcialmente Descremada_NMX-F-744-COFOCALEC-2011","GB-5","% (m/m)","> a 1.5","< a 26"]
["Leche Parcialmente Descremada","Grasa buritrica","ISO 1736: 2008",{"$f":"CONCATENATE(A7,\"_\",C7)","v":"Leche Parcialmente Descremada_ISO 1736: 2008"},"GB-6","% (m/m)","> a 1.5","< a 26"]
["Leche Parcialmente Descremada","Grasa buritrica","AOAC Method 989.05","Leche Parcialmente Descremada_AOAC Method 989.05","GB-7","% (m/m)","> a 1.5","< a 26"]
["Leche Parcialmente Descremada","Grasa buritrica","AOAC Method 932.06","Leche Parcialmente Descremada_AOAC Method 932.06","GB-8","% (m/m)","> a 1.5","< a 26"]
["Leche descremada","Grasa buritrica","NMX-F-744-COFOCALEC-2011","Leche descremada_NMX-F-744-COFOCALEC-2011","GB-9","% (m/m)","< a 1.5",1.5]
["Leche descremada","Grasa buritrica","ISO 1736: 2008","Leche descremada_ISO 1736: 2008","GB-10","% (m/m)","< a 1.5",1.5]
["Leche descremada","Grasa buritrica","AOAC Method 989.05","Leche descremada_AOAC Method 989.05","GB-11","% (m/m)","< a 1.5",1.5]
["Leche descremada","Grasa buritrica","AOAC Method 932.06","Leche descremada_AOAC Method 932.06","GB-12","% (m/m)","< a 1.5",1.5]
[]
[]
["Leche Entera","Húmedad","NOM - 243 - SSAA - 2010",null,"HU-1","% (m/m)",4,4]
["Leche Parcialmente Descremada","Húmedad","ISO 5537:2004",null,"HU-2","% (m/m)",4,4]
["Leche descremada","Húmedad","AOAC Method 927.05",null,"HU-3","% (m/m)",4,4]
[]
[]
["Leche Entera","Húmedad (con base a sólidos no grasos)",null,"NOM - 243 - SSAA - 2010","HNG-1","% (m/m)",5,5]
["Leche Parcialmente Descremada","Húmedad (con base a sólidos no grasos)",null,"ISO 5537:2004","HNG-2","% (m/m)",5,5]
["Leche descremada","Húmedad (con base a sólidos no grasos)",null,"AOAC Method 927.05","HNG-3","% (m/m)",5,5]
[]
["Leche Entera","Proteína Total con base a sólidos lácteos no grasos",null,"NOM - 155 - SCFI - 2012","PNG-1","% (m/m)",34,">34"]
["Leche Parcialmente Descremada","Proteína Total con base a sólidos lácteos no grasos",null,"ISO 8968 - 1: 2014","PNG-2","% (m/m)",34,">34"]
["Leche descremada","Proteína Total con base a sólidos lácteos no grasos",null,"AOAC Method 991.20","PNG-3","% (m/m)",34,">34"]
[null,"Proteína Total con base a sólidos lácteos no grasos",null,"AOAC Method 930.29","PNG-4","% (m/m)",34,">34"]
[]
[]
["Leche Entera","Caseína expresada en sólidos lácteos no grasos",null,"NOM - 155 - SCFI - 2012","CNG-1","% (m/m)",27,">27"]
["Leche Parcialmente Descremada"]
["Leche descremada"]
[]
[]
["Leche Entera","Acidez como ácido láctico %","Extra","NMX - F - 725/1 - COFOCALEC - 2016","NMX - F - 725/1 - COFOCALEC - 2016",{"$f":"A36&C36&D36","v":"Leche EnteraExtraNMX - F - 725/1 - COFOCALEC - 2016"},"AA-1","%","<0.15",0.15]
["Leche Entera","Acidez como ácido láctico %","Estandar","NMX - F - 725/1 - COFOCALEC - 2016","ISO 6091: 2010",{"$f":"A37&C37&D37","v":"Leche EnteraEstandarNMX - F - 725/1 - COFOCALEC - 2016"},"AA-2","%","<0.17",0.17]
["Leche Entera","Acidez como ácido láctico %","Extra","ISO 6091: 2010","ADPI","Leche EnteraExtraISO 6091: 2010","AA-3","%","<0.15",0.15]
["Leche Entera","Acidez como ácido láctico %","Estandar","ISO 6091: 2010",null,"Leche EnteraEstandarISO 6091: 2010","AA-4","%","<0.17",0.17]
["Leche Entera","Acidez como ácido láctico %","Extra","ADPI",null,"Leche EnteraExtraADPI","AA-5","%","<0.15",0.15]
["Leche Entera","Acidez como ácido láctico %","Estandar","ADPI",null,"Leche EnteraEstandarADPI","AA-6","%","<0.17",0.17]
["Leche Parcialmente Descremada","Acidez como ácido láctico %","Extra","NMX - F - 725/1 - COFOCALEC - 2016",null,"Leche Parcialmente DescremadaExtraNMX - F - 725/1 - COFOCALEC - 2016","AA-7","%","<0.15",0.15]
["Leche Parcialmente Descremada","Acidez como ácido láctico %","Estandar","NMX - F - 725/1 - COFOCALEC - 2016",null,"Leche Parcialmente DescremadaEstandarNMX - F - 725/1 - COFOCALEC - 2016","AA-8","%","<0.17",0.17]
["Leche Parcialmente Descremada","Acidez como ácido láctico %","Extra","ISO 6091: 2010",null,"Leche Parcialmente DescremadaExtraISO 6091: 2010","AA-9","%","<0.15",0.15]
["Leche Parcialmente Descremada","Acidez como ácido láctico %","Estandar","ISO 6091: 2010",null,"Leche Parcialmente DescremadaEstandarISO 6091: 2010","AA-10","%","<0.17",0.17]
["Leche Parcialmente Descremada","Acidez como ácido láctico %","Extra","ADPI",null,"Leche Parcialmente DescremadaExtraADPI","AA-11","%","<0.15",0.15]
["Leche Parcialmente Descremada","Acidez como ácido láctico %","Estandar","ADPI",null,"Leche Parcialmente DescremadaEstandarADPI","AA-12","%","<0.17",0.17]
["Leche descremada","Acidez como ácido láctico %","Extra","NMX - F - 725/1 - COFOCALEC - 2016",null,"Leche descremadaExtraNMX - F - 725/1 - COFOCALEC - 2016","AA-13","%","<0.15",0.15]
["Leche descremada","Acidez como ácido láctico %","Estandar","NMX - F - 725/1 - COFOCALEC - 2016",null,"Leche descremadaEstandarNMX - F - 725/1 - COFOCALEC - 2016","AA-14","%","<0.17",0.17]
["Leche descremada","Acidez como ácido láctico %","Extra","ISO 6091: 2010",null,"Leche descremadaExtraISO 6091: 2010","AA-15","%","<0.15",0.15]
["Leche descremada","Acidez como ácido láctico %","Estandar","ISO 6091: 2010",null,"Leche descremadaEstandarISO 6091: 2010","AA-16","%","<0.17",0.17]
["Leche descremada","Acidez como ácido láctico %","Extra","ADPI",null,"Leche descremadaExtraADPI","AA-17","%","<0.15",0.15]
["Leche descremada","Acidez como ácido láctico %","Estandar","ADPI",null,"Leche descremadaEstandarADPI","AA-18","%","<0.17",0.17]
[]
[]
["Leche Entera","Partículas quemadas","Extra","NMX - F - 204 - 1986 / Disco B / Entera","NMX - F - 204 - 1986",{"$f":"A56&C56&E56","v":"Leche EnteraExtraNMX - F - 204 - 1986"},"PQ-1","mg","Disco B / <15","Disco B / 15"]
["Leche Entera","Partículas quemadas","Estandar","NMX - F - 204 - 1986 / Disco C / Entera","NMX - F - 204 - 1986",{"$f":"A57&C57&E57","v":"Leche EnteraEstandarNMX - F - 204 - 1986"},"PQ-2","mg","Disco C / <22.5","Disco C / 22.5"]
["Leche Entera","Partículas quemadas","Extra","ADPI / Disco B / Entera","ADPI","Leche EnteraExtraADPI","PQ-3","mg","Disco B / <15","Disco B / 15"]
["Leche Entera","Partículas quemadas","Estandar","ADPI / Disco C / Entera","ADPI","Leche EnteraEstandarADPI","PQ-4","mg","Disco C / <22.5","Disco C / 22.5"]
["Leche Parcialmente Descremada","Partículas quemadas","Extra","NMX - F - 204 - 1986 / Disco B / Parcialmente Descremada","NMX - F - 204 - 1986","Leche Parcialmente DescremadaExtraNMX - F - 204 - 1986","PQ-5","mg","Disco B / <15","Disco B / 15"]
["Leche Parcialmente Descremada","Partículas quemadas","Estandar","NMX - F - 204 - 1986 / Disco C / Parcialmente Descremada","NMX - F - 204 - 1986","Leche Parcialmente DescremadaEstandarNMX - F - 204 - 1986","PQ-6","mg","Disco C / <22.5","Disco C / 22.5"]
["Leche Parcialmente Descremada","Partículas quemadas","Extra","ADPI / Disco B / Parcialmente Descremada","ADPI","Leche Parcialmente DescremadaExtraADPI","PQ-7","mg","Disco B / <15","Disco B / 15"]
["Leche Parcialmente Descremada","Partículas quemadas","Estandar","ADPI / Disco C / Parcialmente Descremada","ADPI","Leche Parcialmente DescremadaEstandarADPI","PQ-8","mg","Disco C / <22.5","Disco C / 22.5"]
["Leche descremada","Partículas quemadas","Extra","NMX - F - 204 - 1986 / Disco B / descremada","NMX - F - 204 - 1986","Leche descremadaExtraNMX - F - 204 - 1986","PQ-9","mg","Disco B / <15","Disco B / 15"]
["Leche descremada","Partículas quemadas","Estandar","NMX - F - 204 - 1986 / Disco C / descremada","NMX - F - 204 - 1986","Leche descremadaEstandarNMX - F - 204 - 1986","PQ-10","mg","Disco C / <22.5","Disco C / 22.5"]
["Leche descremada","Partículas quemadas","Extra","ADPI / Disco B / descremada","ADPI","Leche descremadaExtraADPI","PQ-11","mg","Disco B / <15","Disco B / 15"]
["Leche descremada","Partículas quemadas","Estandar","ADPI / Disco C / descremada","ADPI","Leche descremadaEstandarADPI","PQ-12","mg","Disco C / <22.5","Disco C / 22.5"]
[]
[]
["Leche Entera","índice de insolubilidad","Extra","NMX-F-744-COFOCALEC-2011","NMX-F-744-COFOCALEC-2011",{"$f":"A70&C70&D70","v":"Leche EnteraExtraNMX-F-744-COFOCALEC-2011"},"I-1","ml","<1.0",1]
["Leche Entera","índice de insolubilidad","Estandar","NMX-F-744-COFOCALEC-2011","ISO 8156:2005",{"$f":"A71&C71&D71","v":"Leche EnteraEstandarNMX-F-744-COFOCALEC-2011"},"I-2","ml","<1.5",1.5]
["Leche Entera","índice de insolubilidad","Extra","ISO 8156:2005","ADPI","Leche EnteraExtraISO 8156:2005","I-3","ml","<1.0",1]
["Leche Entera","índice de insolubilidad","Estandar","ISO 8156:2005",null,"Leche EnteraEstandarISO 8156:2005","I-4","ml","<1.5",1.5]
["Leche Entera","índice de insolubilidad","Extra","ADPI",null,"Leche EnteraExtraADPI","I-5","ml","<1.0",1]
["Leche Entera","índice de insolubilidad","Estandar","ADPI",null,"Leche EnteraEstandarADPI","I-6","ml","<1.5",1.5]
["Leche Parcialmente Descremada","índice de insolubilidad","Extra","NMX-F-744-COFOCALEC-2011",null,"Leche Parcialmente DescremadaExtraNMX-F-744-COFOCALEC-2011","I-7","ml","<1.0",1]
["Leche Parcialmente Descremada","índice de insolubilidad","Estandar","NMX-F-744-COFOCALEC-2011",null,"Leche Parcialmente DescremadaEstandarNMX-F-744-COFOCALEC-2011","I-8","ml","<1.5",1.5]
["Leche Parcialmente Descremada","índice de insolubilidad","Extra","ISO 8156:2005",null,"Leche Parcialmente DescremadaExtraISO 8156:2005","I-9","ml","<1.0",1]
["Leche Parcialmente Descremada","índice de insolubilidad","Estandar","ISO 8156:2005",null,"Leche Parcialmente DescremadaEstandarISO 8156:2005","I-10","ml","<1.5",1.5]
["Leche Parcialmente Descremada","índice de insolubilidad","Extra","ADPI",null,"Leche Parcialmente DescremadaExtraADPI","I-11","ml","<1.0",1]
["Leche Parcialmente Descremada","índice de insolubilidad","Estandar","ADPI",null,"Leche Parcialmente DescremadaEstandarADPI","I-12","ml","<1.5",1.5]
["Leche descremada","índice de insolubilidad","Extra","NMX-F-744-COFOCALEC-2011",null,"Leche descremadaExtraNMX-F-744-COFOCALEC-2011","I-13","ml","<1.2",1.2]
["Leche descremada","índice de insolubilidad","Estandar","NMX-F-744-COFOCALEC-2011",null,"Leche descremadaEstandarNMX-F-744-COFOCALEC-2011","I-14","ml","<2.0",2]
["Leche descremada","índice de insolubilidad","Extra","ISO 8156:2005",null,"Leche descremadaExtraISO 8156:2005","I-15","ml","<1.2",1.2]
["Leche descremada","índice de insolubilidad","Estandar","ISO 8156:2005",null,"Leche descremadaEstandarISO 8156:2005","I-16","ml","<2.0",2]
["Leche descremada","índice de insolubilidad","Extra","ADPI",null,"Leche descremadaExtraADPI","I-17","ml","<1.2",1.2]
["Leche descremada","índice de insolubilidad","Estandar","ADPI",null,"Leche descremadaEstandarADPI","I-18","ml","<2.0",2]
[]
[]
[]
[]
[]
[]
["Leche Entera","Lactosa residual para ser considerada deslactosada ",null,"NOM - 155 - SCFI - 2012","LR-1","g/L","<10",10]
["Leche Parcialmente Descremada"]
["Leche descremada"]

{"sheet":"Catalogo_4","index":3,"n_rows":258,"n_cols":2,"rows_kept":258,"cut":false,"hidden":true,"merged":[]}
["PAIS","PAIS DESC. CORTA"]
["ESTADOS UNIDOS DE AMERICA","ESTADOS UNIDOS DE AMERICA"]
["AFGANISTAN (EMIRATO ISLAMICO DE)","AFGANISTAN"]
["ALBANIA (REPUBLICA DE)","ALBANIA"]
["ALEMANIA (REPUBLICA FEDERAL DE)","ALEMANIA"]
["ANDORRA (PRINCIPADO DE)","ANDORRA"]
["ANGOLA (REPUBLICA DE)","ANGOLA"]
["ANGUILA","ANGUILA"]
["ANTARTIDA","ANTARTIDA"]
["ANTIGUA Y BARBUDA (COMUNIDAD BRITANICA DE NACIONES)","ANTIGUA Y BARBUDA"]
["ANTILLAS NEERLANDESAS (TERRITORIO HOLANDES DE ULTRAMAR)","ANTILLAS NEERLANDESAS"]
["ARABIA SAUDITA (REINO DE)","ARABIA SAUDITA"]
["ARGELIA (REPUBLICA DEMOCRATICA Y POPULAR DE)","ARGELIA"]
["ARGENTINA (REPUBLICA)","ARGENTINA"]
["ARMENIA (REPUBLICA DE)","ARMENIA"]
["ARUBA (TERRITORIO HOLANDES DE ULTRAMAR)","ARUBA"]
["AUSTRALIA (COMUNIDAD DE)","AUSTRALIA"]
["AUSTRIA (REPUBLICA DE)","AUSTRIA"]
["AZERBAIJAN (REPUBLICA AZERBAIJANI)","AZERBAIJAN"]
["BAHAMAS (COMUNIDAD DE LAS)","BAHAMAS"]
["BAHREIN (ESTADO DE)","BAHREIN"]
["BANGLADESH (REPUBLICA POPULAR DE)","BANGLADESH"]
["BARBADOS (COMUNIDAD BRITANICA DE NACIONES)","BARBADOS"]
["BELGICA (REINO DE)","BELGICA"]
["BELICE","BELICE"]
["BENIN (REPUBLICA DE)","BENIN"]
["BERMUDAS","BERMUDAS"]
["BIELORRUSIA (REPUBLICA DE)","BIELORRUSIA"]
["BOLIVIA (REPUBLICA DE)","BOLIVIA"]
["BONAIRE, SAN EUSTAQUIO Y SABA","BONAIRE, SAN EUSTAQUIO Y SABA"]
["BOSNIA Y HERZEGOVINA","BOSNIA Y HERZEGOVINA"]
["BOTSWANA (REPUBLICA DE)","BOTSWANA"]
["BRASIL (REPUBLICA FEDERATIVA DE)","BRASIL"]
["BRUNEI (ESTADO DE) (RESIDENCIA DE PAZ)","BRUNEI"]
["BULGARIA (REPUBLICA DE)","BULGARIA"]
["BURKINA FASO","BURKINA FASO"]
["BURUNDI (REPUBLICA DE)","BURUNDI"]
["BUTAN (REINO DE)","BUTAN"]
["CABO VERDE (REPUBLICA DE)","CABO VERDE"]
["CAIMAN (ISLAS)","CAIMAN"]
["CAMBOYA (REINO DE)","CAMBOYA"]
["CAMERUN (REPUBLICA DEL)","CAMERUN"]
["CANADA","CANADA"]
["CANAL, ISLAS DEL (ISLAS NORMANDAS)","CANAL, ISLAS DEL"]
["CHAD (REPUBLICA DEL)","CHAD"]
["CHILE (REPUBLICA DE)","CHILE"]
["CHINA (REPUBLICA POPULAR)","CHINA"]
["CHIPRE (REPUBLICA DE)","CHIPRE"]
["CIUDAD DEL VATICANO (ESTADO DE LA)","CIUDAD DEL VATICANO"]
["COCOS (KEELING, ISLAS AUSTRALIANAS)","COCOS"]
["COLOMBIA (REPUBLICA DE)","COLOMBIA"]
["COMORAS (ISLAS)","COMORAS"]
["COMUNIDAD EUROPEA","COMUNIDAD EUROPEA"]
["CONGO (REPUBLICA DEL)","CONGO"]
["COOK (ISLAS)","COOK"]
["COREA (REPUBLICA POPULAR DEMOCRATICA DE) (COREA DEL NORTE)","COREA DEL NORTE"]
["COREA (REPUBLICA DE) (COREA DEL SUR)","COREA DEL SUR"]
["COSTA DE MARFIL (REPUBLICA DE LA)","COSTA DE MARFIL"]
["COSTA RICA (REPUBLICA DE)","COSTA RICA"]
["CROACIA (REPUBLICA DE)","CROACIA"]
["CUBA (REPUBLICA DE)","CUBA"]
["CURAZAO (TERRITORIO HOLANDES DE ULTRAMAR)","CURAZAO"]
["DINAMARCA (REINO DE)","DINAMARCA"]
["DJIBOUTI (REPUBLICA DE)","DJIBOUTI"]
["DOMINICA (COMUNIDAD DE)","DOMINICA"]
["ECUADOR (REPUBLICA DEL)","ECUADOR"]
["EGIPTO (REPUBLICA ARABE DE)","EGIPTO"]
["EL SALVADOR (REPUBLICA DE)","EL SALVADOR"]
["EMIRATOS ARABES UNIDOS","EMIRATOS ARABES UNIDOS"]
["ERITREA (ESTADO DE)","ERITREA"]
["ESLOVENIA (REPUBLICA DE)","ESLOVENIA"]
["ESPAÑA (REINO DE)","ESPAÑA"]
["ESTADO FEDERADO DE MICRONESIA","ESTADO FEDERADO DE MICRONESIA"]
["ESTONIA (REPUBLICA DE)","ESTONIA"]
["ETIOPIA (REPUBLICA DEMOCRATICA FEDERAL)","ETIOPIA"]
["FIDJI (REPUBLICA DE)","FIDJI"]
["FILIPINAS (REPUBLICA DE LAS)","FILIPINAS"]
["FINLANDIA (REPUBLICA DE)","FINLANDIA"]
["FRANCIA (REPUBLICA FRANCESA)","FRANCIA"]
["FRANJA DE GAZA","FRANJA DE GAZA"]
["GABONESA (REPUBLICA)","GABONESA"]
["GAMBIA (REPUBLICA DE LA)","GAMBIA"]
["GEORGIA (REPUBLICA DE)","GEORGIA"]
["GEORGIA DEL SUR E ISLAS SANDWICH DEL SUR Clave Reformada D.O.F. 09/05/2016","GEORGIA DEL SUR E ISLAS SANDWICH DEL SUR"]
["GHANA (REPUBLICA DE)","GHANA"]
["GIBRALTAR (R.U.)","GIBRALTAR"]
["GRANADA","GRANADA"]
["GRECIA (REPUBLICA HELENICA)","GRECIA"]
["GROENLANDIA (DINAMARCA)","GROENLANDIA"]
["GUADALUPE (DEPARTAMENTO DE)","GUADALUPE"]
["GUAM (E.U.A.)","GUAM"]
["GUATEMALA (REPUBLICA DE)","GUATEMALA"]
["GUERNSEY","GUERNSEY"]
["GUINEA (REPUBLICA DE)","GUINEA"]
["GUINEA ECUATORIAL (REPUBLICA DE)","GUINEA ECUATORIAL"]
["GUINEA-BISSAU (REPUBLICA DE)","GUINEA-BISSAU"]
["GUYANA (REPUBLICA COOPERATIVA DE)","GUYANA"]
["GUYANA FRANCESA","GUYANA FRANCESA"]
["HAITI (REPUBLICA DE)","HAITI"]
["HONDURAS (REPUBLICA DE)","HONDURAS"]
["HONG KONG (REGION ADMINISTRATIVA ESPECIAL DE LA REPUBLICA)","HONG KONG"]
["HUNGRIA (REPUBLICA DE)","HUNGRIA"]
["INDIA (REPUBLICA DE)","INDIA"]
["INDONESIA (REPUBLICA DE)","INDONESIA"]
["IRAK (REPUBLICA DE)","IRAK"]
["IRAN (REPUBLICA ISLAMICA DEL)","IRAN"]
["IRLANDA (REPUBLICA DE)","IRLANDA"]
["ISLA BOUVET","ISLA BOUVET"]
["ISLA DE MAN","ISLA DE MAN"]
["ISLA FEROE (LAS)","ISLA FEROE"]
["ISLANDIA (REPUBLICA DE)","ISLANDIA"]
["ISLAS ALAND Clave Reformada D.O.F. 09/05/2016","ISLAS ALAND"]
["ISLAS HEARD Y MCDONALD","ISLAS HEARD Y MCDONALD"]
["ISLAS MALVINAS (R.U.)","ISLAS MALVINAS"]
["ISLAS MARIANAS SEPTENTRIONALES","ISLAS MARIANAS SEPTENTRIONALES"]
["ISLAS MARSHALL","ISLAS MARSHALL"]
["ISLAS SALOMON (COMUNIDAD BRITANICA DE NACIONES)","ISLAS SALOMON"]
["ISLAS SVALBARD Y JAN MAYEN (NORUEGA)","ISLAS SVALBARD Y JAN MAYEN"]
["ISLAS TOKELAU","ISLAS TOKELAU"]
["ISLAS WALLIS Y FUTUNA","ISLAS WALLIS Y FUTUNA"]
["ISRAEL (ESTADO DE)","ISRAEL"]
["ITALIA (REPUBLICA ITALIANA)","ITALIA"]
["JAMAICA","JAMAICA"]
["JAPON","JAPON"]
["JERSEY","JERSEY"]
["JORDANIA (REINO HACHEMITA DE)","JORDANIA"]
["KAZAKHSTAN (REPUBLICA DE)","KAZAKHSTAN"]
["KENYA (REPUBLICA DE)","KENYA"]
["KIRIBATI (REPUBLICA DE)","KIRIBATI"]
["KUWAIT (ESTADO DE)","KUWAIT"]
["KYRGYZSTAN (REPUBLICA KIRGYZIA)","KYRGYZSTAN"]
["LESOTHO (REINO DE)","LESOTHO"]
["LETONIA (REPUBLICA DE)","LETONIA"]
["LIBANO (REPUBLICA DE)","LIBANO"]
["LIBERIA (REPUBLICA DE)","LIBERIA"]
["LIBIA (JAMAHIRIYA LIBIA ARABE POPULAR SOCIALISTA)","LIBIA"]
["LIECHTENSTEIN (PRINCIPADO DE)","LIECHTENSTEIN"]
["LITUANIA (REPUBLICA DE)","LITUANIA"]
["LUXEMBURGO (GRAN DUCADO DE)","LUXEMBURGO"]
["MACAO","MACAO"]
["MACEDONIA (ANTIGUA REPUBLICA YUGOSLAVA DE)","MACEDONIA"]
["MADAGASCAR (REPUBLICA DE)","MADAGASCAR"]
["MALASIA","MALASIA"]
["MALAWI (REPUBLICA DE)","MALAWI"]
["MALDIVAS (REPUBLICA DE)","MALDIVAS"]
["MALI (REPUBLICA DE)","MALI"]
["MALTA (REPUBLICA DE)","MALTA"]
["MARRUECOS (REINO DE)","MARRUECOS"]
["MARTINICA (DEPARTAMENTO DE) (FRANCIA)","MARTINICA"]
["MAURICIO (REPUBLICA DE)","MAURICIO"]
["MAURITANIA (REPUBLICA ISLAMICA DE)","MAURITANIA"]
["MAYOTTE","MAYOTTE"]
["MEXICO (ESTADOS UNIDOS MEXICANOS)","MEXICO"]
["MOLDAVIA (REPUBLICA DE)","MOLDAVIA"]
["MONACO (PRINCIPADO DE)","MONACO"]
["MONGOLIA","MONGOLIA"]
["MONSERRAT (ISLA)","MONSERRAT"]
["MONTENEGRO","MONTENEGRO"]
["MOZAMBIQUE (REPUBLICA DE)","MOZAMBIQUE"]
["MYANMAR (UNION DE)","MYANMAR"]
["NAMIBIA (REPUBLICA DE)","NAMIBIA"]
["NAURU","NAURU"]
["NAVIDAD (CHRISTMAS) (ISLAS)","NAVIDAD"]
["NEPAL (REINO DE)","NEPAL"]
["NICARAGUA (REPUBLICA DE)","NICARAGUA"]
["NIGER (REPUBLICA DE)","NIGER"]
["NIGERIA (REPUBLICA FEDERAL DE)","NIGERIA"]
["NIVE (ISLA)","NIVE"]
["NORFOLK (ISLA)","NORFOLK"]
["NORUEGA (REINO DE)","NORUEGA"]
["NUEVA CALEDONIA (TERRITORIO FRANCES DE ULTRAMAR)","NUEVA CALEDONIA"]
["NUEVA ZELANDIA","NUEVA ZELANDIA"]
["OMAN (SULTANATO DE)","OMAN"]
["PACIFICO, ISLAS DEL (ADMON. E.U.A.)","PACIFICO, ISLAS DEL"]
["PAISES BAJOS (REINO DE LOS) (HOLANDA)","PAISES BAJOS"]
["PAISES NO DECLARADOS","PAISES NO DECLARADOS"]
["PAKISTAN (REPUBLICA ISLAMICA DE)","PAKISTAN"]
["PALAU (REPUBLICA DE)","PALAU"]
["PALESTINA","PALESTINA"]
["PANAMA (REPUBLICA DE)","PANAMA"]
["PAPUA NUEVA GUINEA (ESTADO INDEPENDIENTE DE)","PAPUA NUEVA GUINEA"]
["PARAGUAY (REPUBLICA DEL)","PARAGUAY"]
["PERU (REPUBLICA DEL)","PERU"]
["PITCAIRNS (ISLAS DEPENDENCIA BRITANICA)","PITCAIRNS"]
["POLINESIA FRANCESA","POLINESIA FRANCESA"]
["POLONIA (REPUBLICA DE)","POLONIA"]
["PORTUGAL (REPUBLICA PORTUGUESA)","PORTUGAL"]
["PUERTO RICO (ESTADO LIBRE ASOCIADO DE LA COMUNIDAD DE)","PUERTO RICO"]
["QATAR (ESTADO DE)","QATAR"]
["REINO UNIDO DE LA GRAN BRETAÑA E IRLANDA DEL NORTE","REINO UNIDO DE LA GRAN BRETAÑA E IRLANDA DEL NORTE"]
["REPUBLICA CENTROAFRICANA","REPUBLICA CENTROAFRICANA"]
["REPUBLICA CHECA","REPUBLICA CHECA"]
["REPUBLICA DE SERBIA","REPUBLICA DE SERBIA"]
["REPUBLICA DEMOCRATICA POPULAR LAOS","REPUBLICA DEMOCRATICA POPULAR LAOS"]
["REPUBLICA DOMINICANA","REPUBLICA DOMINICANA"]
["REPUBLICA ESLOVACA","REPUBLICA ESLOVACA"]
["REPUBLICA POPULAR DEL CONGO","REPUBLICA POPULAR DEL CONGO"]
["REPUBLICA RUANDESA","REPUBLICA RUANDESA"]
["REUNION (DEPARTAMENTO DE LA) (FRANCIA)","REUNION"]
["RUMANIA","RUMANIA"]
["RUSIA (FEDERACION RUSA)","RUSIA"]
["SAHARA OCCIDENTAL (REPUBLICA ARABE SAHARAVI DEMOCRATICA)","SAHARA OCCIDENTAL"]
["SAMOA (ESTADO INDEPENDIENTE DE)","SAMOA"]
["SAMOA AMERICANA","SAMOA AMERICANA"]
["SAN BARTOLOME","SAN BARTOLOME"]
["SAN CRISTOBAL Y NIEVES (FEDERACION DE) (SAN KITTS-NEVIS)","SAN CRISTOBAL Y NIEVES"]
["SAN MARINO (SERENISIMA REPUBLICA DE)","SAN MARINO"]
["SAN MARTIN (PARTE FRANCESA)","SAN MARTIN"]
["SAN PEDRO Y MIQUELON","SAN PEDRO Y MIQUELON"]
["SAN VICENTE Y LAS GRANADINAS","SAN VICENTE Y LAS GRANADINAS"]
["SANTA ELENA","SANTA ELENA"]
["SANTA LUCIA","SANTA LUCIA"]
["SANTO TOME Y PRINCIPE (REPUBLICA DEMOCRATICA DE)","SANTO TOME Y PRINCIPE"]
["SENEGAL (REPUBLICA DEL)","SENEGAL"]
["SEYCHELLES (REPUBLICA DE LAS)","SEYCHELLES"]
["SIERRA LEONA (REPUBLICA DE)","SIERRA LEONA"]
["SINGAPUR (REPUBLICA DE)","SINGAPUR"]
["SINT MAARTEN (PARTE HOLANDESA)","SINT MAARTEN"]
["SIRIA (REPUBLICA ARABE)","SIRIA"]
["SOMALIA","SOMALIA"]
["SRI LANKA (REPUBLICA DEMOCRATICA SOCIALISTA DE)","SRI LANKA"]
["SUDAFRICA (REPUBLICA DE)","SUDAFRICA"]
["SUDAN (REPUBLICA DEL)","SUDAN"]
["SUDÁN DEL SUR","SUDÁN DEL SUR"]
["SUECIA (REINO DE)","SUECIA"]
["SUIZA (CONFEDERACION)","SUIZA"]
["SURINAME (REPUBLICA DE)","SURINAME"]
["SWAZILANDIA (REINO DE)","SWAZILANDIA"]
["TADJIKISTAN (REPUBLICA DE)","TADJIKISTAN"]
["TAILANDIA (REINO DE)","TAILANDIA"]
["TAIWAN (REPUBLICA DE CHINA)","TAIWAN"]
["TANZANIA (REPUBLICA UNIDA DE)","TANZANIA"]
["TERRITORIOS BRITANICOS DEL OCEANO INDICO","TERRITORIOS BRITANICOS DEL OCEANO INDICO"]
["TERRITORIOS FRANCESES, AUSTRALES Y ANTARTICOS","TERRITORIOS FRANCESES, AUSTRALES Y ANTARTICOS"]
["TIMOR ORIENTAL","TIMOR ORIENTAL"]
["TOGO (REPUBLICA TOGOLESA)","TOGO"]
["TONGA (REINO DE)","TONGA"]
["TRINIDAD Y TOBAGO (REPUBLICA DE)","TRINIDAD Y TOBAGO"]
["TUNEZ (REPUBLICA DE)","TUNEZ"]
["TURCAS Y CAICOS (ISLAS)","TURCAS Y CAICOS"]
["TURKMENISTAN (REPUBLICA DE)","TURKMENISTAN"]
["TURQUIA (REPUBLICA DE)","TURQUIA"]
["TUVALU (COMUNIDAD BRITANICA DE NACIONES)","TUVALU"]
["UCRANIA","UCRANIA"]
["UGANDA (REPUBLICA DE)","UGANDA"]
["URUGUAY (REPUBLICA ORIENTAL DEL)","URUGUAY"]
["UZBEJISTAN (REPUBLICA DE)","UZBEJISTAN"]
["VANUATU","VANUATU"]
["VENEZUELA (REPUBLICA DE)","VENEZUELA"]
["VIETNAM (REPUBLICA SOCIALISTA DE)","VIETNAM"]
["VIRGENES. ISLAS (BRITANICAS)","VIRGENES. ISLAS BRITANICAS"]
["VIRGENES. ISLAS (NORTEAMERICANAS)","VIRGENES. ISLAS NORTEAMERICANAS"]
["YEMEN (REPUBLICA DE)","YEMEN"]
["YUGOSLAVIA (REPUBLICA FEDERAL DE)","YUGOSLAVIA"]
["ZAMBIA (REPUBLICA DE)","ZAMBIA"]
["ZIMBABWE (REPUBLICA DE)","ZIMBABWE"]
["ZONA DEL CANAL DE PANAMA","ZONA DEL CANAL DE PANAMA"]
["ZONA NEUTRAL IRAQ-ARABIA SAUDITA","ZONA NEUTRAL IRAQ-ARABIA SAUDITA"]

{"sheet":"Catalogo_LP","index":4,"n_rows":143,"n_cols":14,"rows_kept":143,"cut":false,"hidden":true,"merged":[]}
["Laboratorio","Fecha_Registro","Folio","País","Domicilio","Ciudad","CP","Opciones","Fracción",null,null,"Fracciones Arancelarias"]
["Agri-Mark","2019-12-26",161,"USA","958 Riverdale Street","West Springfield",1089,2,1,null,null,1,"04021001","Leche en polvo o en pastillas con un contenido de materias grasas inferior o igual a 1.5% en peso - Descremada;"]
["AGROLAB LUFA GmbH","2020-02-05",220,"DEU","Dr.-Hell-Str. 6","Kiel",24107,"3,4",1,null,null,2,"04022101","Leche en polvo o en pastillas sin adición de azúcares u otro edulcorante – Entera y Parcialmente Descremada;"]
["AGROLAB LUFA GmbH","2020-02-05",220,"DEU","Dr.-Hell-Str. 6","Kiel",24107,"3,4",2,null,null,3,"4022999","Los demás"]
["AGROLAB LUFA GmbH","2020-02-05",220,"DEU","Dr.-Hell-Str. 6","Kiel",24107,"3,4",3]
["Agropur Jerome Laboratory","2020-02-10",225,"USA","547 W Nez Perce","Jerome",83338,3,1]
["Alliance Analytical Labs","2019-12-26",165,"USA","179 West Randall Street","Coopersville",49404,4,1]
["ALS Global","2020-01-16",190,"USA","510 St. Joseph Ave","Marshfield",54449,4,1]
["ALS Global","2020-01-16",190,"USA","510 St. Joseph Ave","Marshfield",54449,4,2,null,null,"Opciones"]
["ALS Global","2020-01-16",190,"USA","510 St. Joseph Ave","Marshfield",54449,4,3,null,null,1,"Acreditado y aprobado conforme a la Ley Federal sobre Metrología y Normalización. / Accredited and approved according to the Federal Law on Metrology and Standardization (Mexican legislation);"]
["Associated Milk Producer Inc","2020-03-24",279,"USA","3281 40th Street","Arlington",50606,"2,4",1,null,null,2,"Sus informes son reconocidos para la obtención de un permiso sanitario previo de importación, autorizados por la Comisión Federal para la Protección contra Riesgos Sanitarios o cualquier otra autoridad del gobierno mexicano. / Its reports are recognized by COFEPRIS (by its initials in Spanish) to get a previous sanitary permit for importation or by any Mexican authority.;"]
["Associated Milk Producer Inc","2020-03-24",279,"USA","3281 40th Street","Arlington",50606,"2,4",2,null,null,3,"Es reconocido por autoridades competentes o entidades de acreditación en el extranjero, O; / Is recognized by foreign authorities or foreign accreditation entities;"]
["Associated Milk Producer Inc","2020-03-24",279,"USA","3281 40th Street","Arlington",50606,"2,4",3,null,null,4,"Cumple con la Norma NMX-EC-17025-IMNC-2018 o ISO/IEC 17025:2017. / Complies with the standard NMX-EC-17025-IMNC-2018 or ISO/IEC 17025:2017."]
["AsureQuality Limited","2020-01-23",208,"NZL","131 Boundary Road, Blockhouse Bay , Lynfield, AUCKLAND","Auckland",1140,3,1]
["AsureQuality Limited","2020-01-23",208,"NZL","131 Boundary Road, Blockhouse Bay , Lynfield, AUCKLAND","Auckland",1140,3,2]
["AsureQuality Limited","2020-01-23",208,"NZL","131 Boundary Road, Blockhouse Bay , Lynfield, AUCKLAND","Auckland",1140,3,3]
["BUREAU VERITAS CANADA (2019) INC.","2020-02-20",244,"CAN","6740 CAMPOBELLO ROAD","MISSISSAUGA",528,4,1]
["Cayuga Milk Ingredients","2020-01-10",182,"USA","15 Eagle Drive","Auburn",13021,3,1]
["Cayuga Milk Ingredients","2020-01-10",182,"USA","15 Eagle Drive","Auburn",13021,3,2]
["Certified Laboratories of Northern California","2019-12-19",145,"USA","3241 Liberty Square Parkway","Turlock",95380,"3,4",3]
["Cherney Microbiological Services LTD.","2020-03-19",272,"USA","1110 S. Huron Road","Green Bay",54311,"1,2,3,4",1]
["Cherney Microbiological Services LTD.","2020-03-19",272,"USA","1110 S. Huron Road","Green Bay",54311,"1,2,3,4",2]
["Cherney Microbiological Services LTD.","2020-03-19",272,"USA","1110 S. Huron Road","Green Bay",54311,"1,2,3,4",3]
["Conagra Brands","2020-05-05T16:25:38","7-COV","USA","104 River Road","Menomonie",54751,3,1]
["Conagra Brands","2020-05-05T16:25:38","7-COV","USA","104 River Road","Menomonie",54751,3,2]
["Dairy Farmers of America, Inc. Colorado","2020-02-04",219,"USA"," 2301 E Bijou Ave","Fort Morgan",80701,2,1]
["Dairy Farmers of America, Inc. Colorado","2020-02-04",219,"USA"," 2301 E Bijou Ave","Fort Morgan",80701,2,2]
["Dairy Farmers of America, Inc. Colorado","2020-02-04",219,"USA"," 2301 E Bijou Ave","Fort Morgan",80701,2,3]
["Dairy Farmers of America, Inc. Nevada","2020-01-21",202,"USA","1400 New River Pkwy","Fallon",89406,2,1]
["Dairy Farmers of America, Inc. Nevada","2020-01-21",202,"USA","1400 New River Pkwy","Fallon",89406,2,2]
["Dairy Farmers of America, Inc. Nevada","2020-01-21",202,"USA","1400 New River Pkwy","Fallon",89406,2,3]
["Dairy Farmers of America, Inc. New México","2019-12-03",63,"USA","1820 S Industrial Dr, NM 88130 United States","Portales",88130,2,1]
["Dairy Farmers of America, Inc. New México","2019-12-03",63,"USA","1820 S Industrial Dr, NM 88130 United States","Portales",88130,2,2]
["Dairy Farmers of America, Inc. New México","2019-12-03",63,"USA","1820 S Industrial Dr, NM 88130 United States","Portales",88130,2,3]
["Dairy Farmers of America, Inc. Texas","2020-02-14",241,"USA","1015 East Broadway ","Winnsboro",75494,2,1]
["Dairy Farmers of America, Inc. Texas","2020-02-14",241,"USA","1015 East Broadway ","Winnsboro",75494,2,2]
["Dairy Farmers of America, Inc. Texas","2020-02-14",241,"USA","1015 East Broadway ","Winnsboro",75494,2,3]
["DARIGOLD CALDWELL","2019-12-18",144,"USA","520 ALBANY STREET","CALDWELL",83605,3,1]
["DARIGOLD CHEHALIS","2019-12-18",142,"USA","67 SW CHEHALIS","CHEHALIS",98532,3,1]
["DARIGOLD CHEHALIS","2019-12-18",142,"USA","67 SW CHEHALIS","CHEHALIS",98532,3,2]
["DARIGOLD CORPORATE LAB (DCL)","2019-12-10",108,"USA","12600 INTERURBAN AVENUE S, SUITE 120","TUKWILA",98168,4,1]
["DARIGOLD CORPORATE LAB (DCL)","2019-12-10",108,"USA","12600 INTERURBAN AVENUE S, SUITE 120","TUKWILA",98168,4,2]
["DARIGOLD JEROME","2019-12-18",143,"USA","1703 SOUTH BUCHANAN","Jerome",83338,3,1]
["DARIGOLD LYNDEN ","2019-12-18",141,"USA","8424 DEPOT ROAD","LYNDEN",98264,3,1]
["DARIGOLD SUNNYSIDE","2019-12-10",107,"USA","400 ALEXANDER ROAD","SUNNYSIDE",98944,3,1]
["Deibel Laboratories","2020-05-05T15:20:19","6-COV","USA","415 South Grove, Suite 10","Blue Earth",56013,"3,4",1]
["Deibel Laboratories","2020-05-05T15:20:19","6-COV","USA","415 South Grove, Suite 10","Blue Earth",56013,"3,4",2]
["Deseret Dairy Products","2020-02-20",245,"USA","784 West 700 South","Salt Lake City",84104,3,1]
["ESIANLAB SC","2019-11-21",28,"MEX","AV ALEMANIA 1220","Guadalajara",44190,4]
["Eurofins DQCI, LLC","2020-01-10",183,"USA","4842 W Jacquelyn","Fresno",93722,4,1]
["Eurofins DQCI, LLC","2020-01-10",183,"USA","4842 W Jacquelyn","Fresno",93722,4,2]
["Eurofins DQCI, LLC","2020-01-10",183,"USA","4842 W Jacquelyn","Fresno",93722,4,3]
["Eurofins ELS Limited","2020-01-23",211,"NZL","85 Port Road, Seaview, LOWER HUTT","Lower Hutt",5045,3,1]
["Eurofins ELS Limited","2020-01-23",211,"NZL","85 Port Road, Seaview, LOWER HUTT","Lower Hutt",5045,3,2]
["Eurofins ELS Limited","2020-01-23",211,"NZL","85 Port Road, Seaview, LOWER HUTT","Lower Hutt",5045,3,3]
["Eurofins Food Analytics NZ Limited","2020-01-23",207,"NZL","35 O'Rorke Road, Penrose, AUCKLAND","Auckland",1642,3,1]
["Eurofins Food Analytics NZ Limited","2020-01-23",207,"NZL","35 O'Rorke Road, Penrose, AUCKLAND","Auckland",1642,3,2]
["Eurofins Food Analytics NZ Limited","2020-01-23",207,"NZL","35 O'Rorke Road, Penrose, AUCKLAND","Auckland",1642,3,3]
["Fonterra Ltd Clandeboye Laboratory","2020-01-15",186,"NZL","Rolleston Road, RD 26","Temuka",7986,"3,4",1]
["Fonterra Ltd Clandeboye Laboratory","2020-01-15",186,"NZL","Rolleston Road, RD 26","Temuka",7986,"3,4",2]
["Fonterra Ltd Clandeboye Laboratory","2020-01-15",186,"NZL","Rolleston Road, RD 26","Temuka",7986,"3,4",3]
["Fonterra Ltd. Te Rapa Laboratory ","2020-01-15",189,"NZL","1344 Te Rapa Rd, Te Rapa","Hamilton",3200,"3,4",1]
["Fonterra Ltd. Te Rapa Laboratory ","2020-01-15",189,"NZL","1344 Te Rapa Rd, Te Rapa","Hamilton",3200,"3,4",2]
["Fonterra Ltd. Te Rapa Laboratory ","2020-01-15",189,"NZL","1344 Te Rapa Rd, Te Rapa","Hamilton",3200,"3,4",3]
["Fonterra Ltd. Waitoa Laboratory","2020-01-15",187,"NZL","Cnr SH 26/No.1 Road","Waitoa",3380,"3,4",1]
["Fonterra Ltd. Waitoa Laboratory","2020-01-15",187,"NZL","Cnr SH 26/No.1 Road","Waitoa",3380,"3,4",2]
["Fonterra Ltd. Waitoa Laboratory","2020-01-15",187,"NZL","Cnr SH 26/No.1 Road","Waitoa",3380,"3,4",3]
["Fonterra Ltd. Whareroa Laboratory ","2020-01-15",188,"NZL","Whareroa Road, RD 12","Hawera",4672,"3,4",1]
["Fonterra Ltd. Whareroa Laboratory ","2020-01-15",188,"NZL","Whareroa Road, RD 12","Hawera",4672,"3,4",2]
["Fonterra Ltd. Whareroa Laboratory ","2020-01-15",188,"NZL","Whareroa Road, RD 12","Hawera",4672,"3,4",3]
["Foremost Farms USA","2020-02-11",228,"USA","E10889 Penny Lane","Baraboo",53913,"3,4",1]
["Foremost Farms USA","2020-02-11",228,"USA","E10889 Penny Lane","Baraboo",53913,"3,4",2]
["Foremost Farms USA","2020-02-11",228,"USA","E10889 Penny Lane","Baraboo",53913,"3,4",3]
["Goodman Fielder New Zealand Limited","2020-01-23",205,"NZL","15 Reserve Road, LONGBURN","Longburn",4477,3,1]
["Goodman Fielder New Zealand Limited","2020-01-23",205,"NZL","15 Reserve Road, LONGBURN","Longburn",4477,3,2]
["Goodman Fielder New Zealand Limited","2020-01-23",205,"NZL","15 Reserve Road, LONGBURN","Longburn",4477,3,3]
["Heinz Wattie's Limited","2020-01-23",204,"NZL","Corner Tomoana Road and Richmond Road, HASTINGS","Hastings",4172,3,1]
["Heinz Wattie's Limited","2020-01-23",204,"NZL","Corner Tomoana Road and Richmond Road, HASTINGS","Hastings",4172,3,2]
["Heinz Wattie's Limited","2020-01-23",204,"NZL","Corner Tomoana Road and Richmond Road, HASTINGS","Hastings",4172,3,3]
["High Desert Milk Lab","2019-12-05",82,"USA","1033 Idaho Avenue","Burley",83318,3,1]
["Idaho Milk Products","2020-01-29",216,"USA","2249 South Tiger Drive","Jerome",83338,3,1]
["Laboratorio Central de Analisis de Granby","2020-01-16",191,"CAN","4700 Armand Frappier J3Z 1G5","St-Hubert",315,3,1]
["LABORATORIO CONAPROLE","2020-02-10",226,"URY","J. J. de Vertiz 1969","Montevideo",11900,4,1]
["LABORATORIO CONAPROLE","2020-02-10",226,"URY","J. J. de Vertiz 1969","Montevideo",11900,4,2]
["LABORATORIO CONAPROLE","2020-02-10",226,"URY","J. J. de Vertiz 1969","Montevideo",11900,4,3]
["LABORATORIO TECNOLOGICO DEL URUGUAY","2020-01-30",217,"URY","Avda Italia 6201","Montevideo",11500,"3,4",1]
["LABORATORIO TECNOLOGICO DEL URUGUAY","2020-01-30",217,"URY","Avda Italia 6201","Montevideo",11500,"3,4",2]
["LABORATORIO TECNOLOGICO DEL URUGUAY","2020-01-30",217,"URY","Avda Italia 6201","Montevideo",11500,"3,4",3]
["Land O'Lakes, Inc. Carlisle","2019-12-02",61,"USA","405 Park Dr","Carlisle",17015,3,2]
["Land O'Lakes, Inc. Carlisle","2019-12-02",61,"USA","405 Park Dr","Carlisle",17015,3,3]
["Le Sueur Food Ingredient Laboratory","2020-02-10",224,"USA","620 North Main Street","Le Sueur",56058,3,1]
["Lone Star Dairy Products","2019-11-25",41,"USA","401 W. Highway 60","Canyon",79015,2,1]
["Lufa Nord - West","2020-01-29",214,"DEU","Ammerländer Heerstraße 115","Oldenburg",26129,4,1]
["Lufa Nord - West","2020-01-29",214,"DEU","Ammerländer Heerstraße 115","Oldenburg",26129,4,2]
["Lufa Nord - West","2020-01-29",214,"DEU","Ammerländer Heerstraße 115","Oldenburg",26129,4,3]
["Maryland & Virginia Milk Producers Cooperative Association","2020-01-13",185,"USA","8321 Leishear Road","Laurel",20723,3,1]
["Matrix Sciences International Inc.","2020-01-20",201,"USA","1061 Feehanville Drive","Mount Prospect",60056,4,1]
["Matrix Sciences International Inc.","2020-01-20",201,"USA","1061 Feehanville Drive","Mount Prospect",60056,4,2]
["Matrix Sciences International Inc.","2020-01-20",201,"USA","1061 Feehanville Drive","Mount Prospect",60056,4,3]
["Meadowlark Dairy Nutrition LLC","2020-01-21",203,"USA","330 S Hwy 83","Garden City",67846,2,1]
["Meadowlark Dairy Nutrition LLC","2020-01-21",203,"USA","330 S Hwy 83","Garden City",67846,2,2]
["Meadowlark Dairy Nutrition LLC","2020-01-21",203,"USA","330 S Hwy 83","Garden City",67846,2,3]
["Merieux Nutrisciences","2019-12-26",164,"USA","5262 Pirrone Court","Salida",95368,4,1]
["Midwest Laboratories, Inc.","2020-03-18",267,"USA","13611 B Street","Omaha",68144,4,1]
["MilkTest NZ LP","2020-01-23",209,"NZL","1344 Te Rapa Road, Horotiu, HAMILTON","Hamilton",3241,3,1]
["MilkTest NZ LP","2020-01-23",209,"NZL","1344 Te Rapa Road, Horotiu, HAMILTON","Hamilton",3241,3,2]
["MilkTest NZ LP","2020-01-23",209,"NZL","1344 Te Rapa Road, Horotiu, HAMILTON","Hamilton",3241,3,3]
["Molkerei Ammerland eG","2020-01-29",213,"DEU","Oldenburger Landstraße 1a","Wiefelstede",26215,3,3]
["MULLER MILK & INGREDIENTS SEVERNSIDE LABORATORY","2020-02-06",221,"GBR","OLDENDS LANE, STONEHOUSE, GLOUCESTERSHIRE ","STONEHOUSE",0,3,1]
["muva kempten GmbH","2020-02-18",242,"DEU","Ignaz-Kiechle-Strasse 20-22","Kempten/Allgäu",87437,4,1]
["muva kempten GmbH","2020-02-18",242,"DEU","Ignaz-Kiechle-Strasse 20-22","Kempten/Allgäu",87437,4,2]
["muva kempten GmbH","2020-02-18",242,"DEU","Ignaz-Kiechle-Strasse 20-22","Kempten/Allgäu",87437,4,3]
["National Science Laboratories","2020-03-26",286,"USA","801 Summit Crossing Place, Suite B","Gastonia",28054,"3,4",1]
["NQAC TOLUCA Nestlé México ","2020-04-12","2-COVM","MEX","Carr. México – Toluca Km. 62.5","Toluca, Edo. de México ",50140,"3,4"]
["O-at-ka Milk Products Coop. Inc.","2020-01-11",184,"USA","4815 Ellicott Steet","Batavia",14020,3,1]
["SGS Vanguard Sciences","2020-06-09","8-COV","USA","224 N. Derby Ln.","North Sioux City",57049,4,1]
["Sierra Dairy Labs","2019-12-26",166,"USA","432 North \"O\" Street","Tulare",93274,3,1]
["Silliker Inc. - Salida","2020-02-19",243,"USA","5262 Pirrone Ct","Salida",95368,"3,4",1]
["Silliker Inc. - Salida","2020-02-19",243,"USA","5262 Pirrone Ct","Salida",95368,"3,4",2]
["Silliker Inc. - Salida","2020-02-19",243,"USA","5262 Pirrone Ct","Salida",95368,"3,4",3]
["Silliker Mexico SA de CV","2020-02-06",222,"MEX","Carretera al campo militar #305 Int B","Santiago de Queretaro",76135,"1,2,3,4"]
["Silliker, Inc.","2020-01-06",181,"USA","6390 Hedgewood Drive","Allentown",18106,4,2]
["Silliker, Inc. dba Merieux NutriSciences","2020-03-31",290,"USA","3600 Eagle Nest Drive","Crete",60417,4,3]
["Silliker, Inc. dba Merieux NutriSciences, Crete Analytical Laboratory","2020-03-30",287,"USA","3600 Eagle Nest Drive","Crete",60417,4,3]
["Silliker, Inc. Illinois Laboratory","2020-04-29T16:39:24","5-COV","USA","3600 Eagle Nest Drive, North Building","Crete",60417,"3,4",1]
["Silliker, Inc. Illinois Laboratory","2020-04-29T16:39:24","5-COV","USA","3600 Eagle Nest Drive, North Building","Crete",60417,"3,4",2]
["Silliker, Inc. Northern California Laboratory","2019-12-02",62,"USA","5262 Pirrone Court","Salida",95368,4,1]
["Silliker, Inc. Northern California Laboratory","2019-12-02",62,"USA","5262 Pirrone Court","Salida",95368,4,3]
["Sunrise Laboratories, LLC","2019-11-26",42,"USA","8020 West Doe Avenue","Visalia",93291,4,1]
["The Cawthron Institute Trust Board","2020-01-23",210,"NZL","98 Halifax Street, NELSON","Nelson",7010,3,1]
["The Cawthron Institute Trust Board","2020-01-23",210,"NZL","98 Halifax Street, NELSON","Nelson",7010,3,2]
["The Cawthron Institute Trust Board","2020-01-23",210,"NZL","98 Halifax Street, NELSON","Nelson",7010,3,3]
["United Dairymen of Arizona","2020-04-09",301,"USA","2008 South Hardy Drive","Tempe",85282,"2,3,4",1]
["United Dairymen of Arizona","2020-04-09",301,"USA","2008 South Hardy Drive","Tempe",85282,"2,3,4",2]
["United Dairymen of Arizona","2020-04-09",301,"USA","2008 South Hardy Drive","Tempe",85282,"2,3,4",3]
["USDA ","2020-03-24",285,"USA","801 Summit Crossing Place, Suite B","Gastonia",28054,"1,2,3,4",1]
["USDA National Science Laboratories","2020-03-24",282,"USA","801 Summit Crossing Place, Suite B","Gastonia",28054,"1,2,3,4",1]
["USDA National Science Laboratories","2020-03-24",282,"USA","801 Summit Crossing Place, Suite B","Gastonia",28054,"1,2,3,4",2]
["USDA National Science Laboratories","2020-03-24",282,"USA","801 Summit Crossing Place, Suite B","Gastonia",28054,"1,2,3,4",3]
["USDA, AMS, National Science Laboratories","2020-03-18",264,"USA","801 Summit Crossing Place, Suite B","Gastonia",28054,"3,4",1]
["Westland Co-operative Dairy Company Limited","2020-01-23",206,"NZL","56 Livingstone Street, HOKITIKA","Hokitika",7842,3,1]
["Westland Co-operative Dairy Company Limited","2020-01-23",206,"NZL","56 Livingstone Street, HOKITIKA","Hokitika",7842,3,2]
["Westland Co-operative Dairy Company Limited","2020-01-23",206,"NZL","56 Livingstone Street, HOKITIKA","Hokitika",7842,3,3]

{"sheet":"Inicio","index":5,"n_rows":0,"n_cols":0,"rows_kept":0,"cut":false,"hidden":false,"merged":[]}

{"sheet":"Layout","index":6,"n_rows":8,"n_cols":7,"rows_kept":8,"cut":false,"hidden":false,"merged":[[0,6,0,9]]}
[null,null,null,null,"Leche en Polvo",null,"Secretaría de Economía\nDirección General de Facilitación Comercial y Comercio Exterior\nNOM - 222 - SCFI / SAGARPA 2018"]
["Número de Informe","NOM","Tipo de producto","Fracción Arancelaria","Fecha de Expedición","Producto"]
[null,"NOM-222-SCFI/SAGARPA-2018",null,{"$f":"+IF($C$3=\"Leche Descremada\",'Catalogo 2'!$I$2,IF($C$3=\"Leche Entera\",'Catalogo 2'!$I$3,IF($C$3=\"Leche Parcialmente Descremada\",'Catalogo 2'!$I$4,\" \")))","v":" "},null,"Leche En Polvo"]
[{"$f":"IFERROR($A$3,\"\")","v":0},{"$f":"IFERROR($B$3,\"\")","v":"NOM-222-SCFI/SAGARPA-2018"},{"$f":"IFERROR($C$3,\"\")","v":0},{"$f":"IFERROR(VLOOKUP($C$3,'Catalogo 2'!$A$11:$B$83,2,FALSE),\"\")","v":""},{"$f":"IFERROR($E$3,\" \")","v":0},"Leche En Polvo"]
[0,"NOM-222-SCFI/SAGARPA-2018",0,{"$f":"IFERROR(VLOOKUP($C$3,'Catalogo 2'!$A$11:$B$83,2,FALSE),\"\")","v":""},0,"Leche En Polvo"]
[0,"NOM-222-SCFI/SAGARPA-2018",0,{"$f":"IFERROR(VLOOKUP($C$3,'Catalogo 2'!$A$11:$B$83,2,FALSE),\"\")","v":""},0,"Leche En Polvo"]
[0,"NOM-222-SCFI/SAGARPA-2018",0,{"$f":"IFERROR(VLOOKUP($C$3,'Catalogo 2'!$A$11:$B$83,2,FALSE),\"\")","v":""},0,"Leche En Polvo"]
[0,"NOM-222-SCFI/SAGARPA-2018",0,{"$f":"IFERROR(VLOOKUP($C$3,'Catalogo 2'!$A$11:$B$83,2,FALSE),\"\")","v":""},0,"Leche En Polvo"]